fUST/lending_fUST_20250628
["ID","MTS","AMOUNT","RATE_DAILY","PERIOD"]
[368264854,1751081445166,-460.0,0.00019726,2]
[368264856,1751081445177,-948.49,0.00019726,2]
[368264858,1751081445187,-460.0,0.00019726,2]
[368264860,1751081445198,-460.0,0.00019726,2]
[368264863,1751081445209,-460.0,0.00019726,2]
[368264865,1751081445220,-460.0,0.00019726,2]
[368264867,1751081445231,-2240.13,0.00019726,2]
[368264869,1751081445243,-460.0,0.00019726,2]
[368264870,1751081445254,-460.0,0.00019726,2]
[368264871,1751081445265,-460.0,0.00019726,2]
[368264872,1751081445276,-460.0,0.00019726,2]
[368264873,1751081445287,-460.0,0.00019726,2]
[368264874,1751081445298,-460.0,0.00019726,2]
[368264875,1751081445308,-460.0,0.00019726,2]
[368264876,1751081445319,-419.50317659,0.00019726,2]
[368264878,1751081445330,-460.0,0.00019726,2]
[368264880,1751081445340,-588.09361166,0.00019726,2]
[368264882,1751081445351,-690.88,0.00019726,2]
[368264883,1751081445362,-460.0,0.00019726,2]
[368264884,1751081445372,-458.16,0.00019726,2]
[368264885,1751081445383,-460.0,0.00019726,2]
[368264886,1751081445394,-460.0,0.00019726,2]
[368264887,1751081445405,-460.0,0.00019726,2]
[368264888,1751081445416,-460.0,0.00019726,2]
[368264889,1751081445427,-460.0,0.00019726,2]
[368264908,1751081445603,-2481.25,0.00019726,2]
[368264910,1751081445615,-460.0,0.00019726,2]
[368264912,1751081445624,-460.0,0.00019726,2]
[368264914,1751081445634,-814.58,0.00019726,2]
[368264916,1751081445643,-773.22,0.00019726,2]
[368264917,1751081445652,-460.0,0.00019726,2]
[368264918,1751081445661,-460.0,0.00019726,2]
[368264920,1751081445671,-460.0,0.00019726,2]
[368264922,1751081445680,-460.0,0.00019726,2]
[368264924,1751081445689,-460.0,0.00019726,2]
[368264926,1751081445699,-460.0,0.00019726,2]
[368264928,1751081445708,-460.0,0.00019726,2]
[368264930,1751081445718,-1777.23,0.00019726,2]
[368264932,1751081445727,-460.0,0.00019726,2]
[368264934,1751081445736,-460.0,0.00019726,2]
[368264936,1751081445746,-460.0,0.00019726,2]
[368264938,1751081445755,-2125.76,0.00019726,2]
[368264940,1751081445764,-460.0,0.00019726,2]
[368264942,1751081445773,-460.0,0.00019726,2]
[368264944,1751081445783,-460.0,0.00019726,2]
[368264946,1751081445791,-460.0,0.00019726,2]
[368264947,1751081445801,-2021.84,0.00019726,2]
[368264949,1751081445810,-655.55,0.00019726,2]
[368264951,1751081445819,-460.0,0.00019726,2]
[368264953,1751081445829,-2938.26,0.00019726,2]
[368264955,1751081445838,-460.0,0.00019726,2]
[368264957,1751081445848,-460.0,0.00019726,2]
[368264959,1751081445857,-460.0,0.00019726,2]
[368264961,1751081445866,-460.0,0.00019726,2]
[368264963,1751081445875,-460.0,0.00019726,2]
[368264965,1751081445885,-460.0,0.00019726,2]
[368264967,1751081445894,-3954.53,0.00019726,2]
[368264969,1751081445903,-460.0,0.00019726,2]
[368264971,1751081445912,-566.58,0.00019726,2]
[368264973,1751081445922,-1403.17,0.00019726,2]
[368264975,1751081445932,-460.0,0.00019726,2]
[368264977,1751081445941,-1949.5,0.00019726,2]
[368264979,1751081445951,-460.0,0.00019726,2]
[368264981,1751081445961,-968.22,0.00019726,2]
[368264983,1751081445971,-1269.31,0.00019726,2]
[368264985,1751081445980,-460.0,0.00019726,2]
[368264987,1751081445989,-848.21,0.00019726,2]
[368264989,1751081445998,-460.0,0.00019726,2]
[368264991,1751081446008,-460.0,0.00019726,2]
[368264993,1751081446017,-460.0,0.00019726,2]
[368264995,1751081446027,-460.0,0.00019726,2]
[368264997,1751081446037,-460.0,0.00019726,2]
[368264999,1751081446047,-670.55,0.00019726,2]
[368265001,1751081446056,-460.0,0.00019726,2]
[368265003,1751081446065,-521.35,0.00019726,2]
[368265005,1751081446074,-460.0,0.00019726,2]
[368265007,1751081446083,-460.0,0.00019726,2]
[368265009,1751081446094,-1126.96,0.00019726,2]
[368265011,1751081446103,-460.0,0.00019726,2]
[368265014,1751081446113,-460.0,0.00019726,2]
[368265015,1751081446123,-1814.01,0.00019726,2]
[368265017,1751081446133,-460.0,0.00019726,2]
[368265018,1751081446142,-1478.45,0.00019726,2]
[368265019,1751081446151,-245.42726476,0.00019726,2]
[368265020,1751081446160,-274.50680258,0.00019729,2]
[368265021,1751081446170,-2121.0,0.00019806,2]
[368265022,1751081446179,-10308.31586681,0.000199,2]
[368265023,1751081446188,-2121.0,0.00019936,2]
[368265024,1751081446197,-503.38697079,0.0001996,2]
[368265025,1751081446207,-2393.45651943,0.00019968,2]
[368265026,1751081446216,-420.0,0.00019971,2]
[368265027,1751081446226,-480.0,0.00019973,2]
[368265028,1751081446235,-100000.0,0.0001999,2]
[368265029,1751081446244,-1924.64,0.00019999,2]
[368265030,1751081446253,-460.0,0.0002,2]
[368265031,1751081446263,-460.0,0.0002,2]
[368265032,1751081446272,-293.62,0.0002,2]
[368265034,1751081446282,-460.0,0.0002,2]
[368265036,1751081446291,-207.15453225,0.0002,2]
[368265038,1751081446302,-460.0,0.0002,2]
[368265040,1751081446311,-460.0,0.0002,2]
[368265042,1751081446323,-3853.58,0.0002,2]
[368265044,1751081446332,-460.0,0.0002,2]
[368265046,1751081446341,-460.0,0.0002,2]
[368265048,1751081446351,-1138.99,0.0002,2]
[368265050,1751081446360,-460.0,0.0002,2]
[368265052,1751081446369,-460.0,0.0002,2]
[368265054,1751081446379,-460.0,0.0002,2]
[368265056,1751081446388,-2100.3,0.0002,2]
[368265058,1751081446397,-733.55,0.0002,2]
[368265060,1751081446406,-460.0,0.0002,2]
[368265061,1751081446415,-460.0,0.0002,2]
[368265063,1751081446425,-1393.07,0.0002,2]
[368265065,1751081446434,-460.0,0.0002,2]
[368265067,1751081446443,-460.0,0.0002,2]
[368265069,1751081446452,-460.0,0.0002,2]
[368265071,1751081446462,-948.49,0.0002,2]
[368265073,1751081446471,-460.0,0.0002,2]
[368265075,1751081446480,-460.0,0.0002,2]
[368265077,1751081446490,-460.0,0.0002,2]
[368265079,1751081446505,-2240.13,0.0002,2]
[368265081,1751081446515,-471.65254243,0.0002,2]
[368265083,1751081446524,-483.6603897,0.0002,2]
[368265085,1751081446534,-460.0,0.0002,2]
[368265087,1751081446543,-406.51660203,0.0002,2]
[368265089,1751081446553,-460.0,0.0002,2]
[368265092,1751081446563,-468.86,0.0002,2]
[368265093,1751081446573,-690.88,0.0002,2]
[368265096,1751081446583,-460.0,0.0002,2]
[368265098,1751081446592,-460.0,0.0002,2]
[368265100,1751081446601,-460.0,0.0002,2]
[368265102,1751081446611,-601.84,0.0002,2]
[368265104,1751081446620,-460.0,0.0002,2]
[368265106,1751081446630,-460.0,0.0002,2]
[368265108,1751081446640,-2481.25,0.0002,2]
[368265110,1751081446650,-460.0,0.0002,2]
[368265112,1751081446660,-460.0,0.0002,2]
[368265114,1751081446672,-814.58,0.0002,2]
[368265116,1751081446682,-773.22,0.0002,2]
[368265118,1751081446691,-460.0,0.0002,2]
[368265120,1751081446700,-460.0,0.0002,2]
[368265122,1751081446710,-460.0,0.0002,2]
[368265124,1751081446719,-1777.23,0.0002,2]
[368265125,1751081446729,-460.0,0.0002,2]
[368265127,1751081446739,-460.0,0.0002,2]
[368265129,1751081446748,-2125.76,0.0002,2]
[368265131,1751081446758,-460.0,0.0002,2]
[368265132,1751081446768,-460.0,0.0002,2]
[368265134,1751081446778,-460.0,0.0002,2]
[368265135,1751081446787,-2021.84,0.0002,2]
[368265136,1751081446797,-655.55,0.0002,2]
[368265137,1751081446806,-2938.26,0.0002,2]
[368265138,1751081446816,-460.0,0.0002,2]
[368265140,1751081446826,-460.0,0.0002,2]
[368265141,1751081446835,-460.0,0.0002,2]
[368265143,1751081446845,-460.0,0.0002,2]
[368265145,1751081446855,-460.0,0.0002,2]
[368265147,1751081446864,-566.10005202,0.0002,2]
[368265149,1751081446875,-3954.53,0.0002,2]
[368265151,1751081446885,-460.0,0.0002,2]
[368265153,1751081446894,-1403.17,0.0002,2]
[368265155,1751081446903,-460.0,0.0002,2]
[368265157,1751081446912,-1949.5,0.0002,2]
[368265159,1751081446922,-446.18024661,0.0002,2]
[368265162,1751081446932,-968.22,0.0002,2]
[368265164,1751081446942,-1269.31,0.0002,2]
[368265166,1751081446952,-460.0,0.0002,2]
[368265168,1751081446961,-848.21,0.0002,2]
[368265170,1751081446970,-460.0,0.0002,2]
[368265171,1751081446979,-460.0,0.0002,2]
[368265174,1751081446988,-460.0,0.0002,2]
[368265176,1751081446998,-577.8,0.0002,2]
[368265178,1751081447007,-670.55,0.0002,2]
[368265180,1751081447016,-460.0,0.0002,2]
[368265182,1751081447025,-521.35,0.0002,2]
[368265183,1751081447035,-460.0,0.0002,2]
[368265185,1751081447045,-460.0,0.0002,2]
[368265187,1751081447054,-1126.96,0.0002,2]
[368265189,1751081447063,-460.0,0.0002,2]
[368265191,1751081447073,-460.0,0.0002,2]
[368265193,1751081447082,-1814.01,0.0002,2]
[368265195,1751081447092,-1478.45,0.0002,2]
[368265197,1751081447101,-160.0,0.0002,3]
[368265199,1751081447111,-1425.0,0.00020068,2]
[368265201,1751081447120,-2395.0,0.00020111,2]
[368265203,1751081447130,-10308.31586681,0.00020141,2]
[368265205,1751081447139,-300.0,0.00020158,2]
[368265207,1751081447148,-168.0,0.00020171,2]
[368265209,1751081447157,-208.601989,0.00020187,2]
[368265211,1751081447166,-160.0,0.00020204,2]
[368265213,1751081447175,-160.0,0.00020204,2]
[368265215,1751081447185,-160.0,0.00020204,2]
[368265217,1751081447195,-214.95397287,0.00020204,2]
[368265219,1751081447204,-160.0,0.00020204,2]
[368265221,1751081447213,-12564.78152626,0.00020204,2]
[368265223,1751081447222,-230.28494567,0.00020204,2]
[368265225,1751081447231,-847.18566335,0.00020204,2]
[368265227,1751081447240,-213.78848551,0.00020204,2]
[368265229,1751081447250,-837.06984471,0.00020204,2]
[368265231,1751081447260,-160.0,0.00020204,2]
[368265233,1751081447269,-160.0,0.00020204,2]
[368265235,1751081447279,-160.0,0.00020205,2]
[368265237,1751081447289,-160.0,0.00020205,2]
[368265239,1751081447298,-160.0,0.00020205,2]
[368265241,1751081447308,-1959.0,0.00020225,2]
[368265243,1751081447317,-1924.64,0.0002025,2]
[368265245,1751081447326,-1924.64,0.00020272,2]
[368265247,1751081447336,-460.0,0.00020273,2]
[368265249,1751081447346,-460.0,0.00020273,2]
[368265251,1751081447355,-460.0,0.00020273,2]
[368265253,1751081447364,-460.0,0.00020273,2]
[368265255,1751081447373,-3853.58,0.00020273,2]
[368265257,1751081447382,-460.0,0.00020273,2]
[368265259,1751081447392,-460.0,0.00020273,2]
[368265261,1751081447402,-1138.99,0.00020273,2]
[368265263,1751081447412,-460.0,0.00020273,2]
[368265266,1751081447422,-460.0,0.00020273,2]
[368265268,1751081447432,-460.0,0.00020273,2]
[368265270,1751081447441,-2100.3,0.00020273,2]
[368265272,1751081447450,-733.55,0.00020273,2]
[368265274,1751081447459,-460.0,0.00020273,2]
[368265275,1751081447469,-460.0,0.00020273,2]
[368265278,1751081447478,-1393.07,0.00020273,2]
[368265280,1751081447487,-460.0,0.00020273,2]
[368265282,1751081447501,-460.0,0.00020273,2]
[368265284,1751081447510,-460.0,0.00020273,2]
[368265286,1751081447519,-948.49,0.00020273,2]
[368265288,1751081447528,-460.0,0.00020273,2]
[368265290,1751081447539,-460.0,0.00020273,2]
[368265292,1751081447548,-2240.13,0.00020273,2]
[368265293,1751081447558,-460.0,0.00020273,2]
[368265294,1751081447567,-690.88,0.00020273,2]
[368265295,1751081447578,-460.0,0.00020273,2]
[368265296,1751081447587,-460.0,0.00020273,2]
[368265297,1751081447597,-460.0,0.00020273,2]
[368265298,1751081447606,-460.0,0.00020273,2]
[368265299,1751081447617,-460.0,0.00020273,2]
[368265300,1751081447627,-2481.25,0.00020273,2]
[368265301,1751081447636,-460.0,0.00020273,2]
[368265302,1751081447646,-773.22,0.00020273,2]
[368265303,1751081447655,-814.58,0.00020273,2]
[368265304,1751081447666,-460.0,0.00020273,2]
[368265305,1751081447675,-460.0,0.00020273,2]
[368265306,1751081447685,-460.0,0.00020273,2]
[368265307,1751081447695,-1777.23,0.00020273,2]
[368265308,1751081447704,-460.0,0.00020273,2]
[368265309,1751081447713,-2125.76,0.00020273,2]
[368265310,1751081447723,-460.0,0.00020273,2]
[368265311,1751081447732,-460.0,0.00020273,2]
[368265312,1751081447742,-460.0,0.00020273,2]
[368265313,1751081447751,-2021.84,0.00020273,2]
[368265314,1751081447761,-655.55,0.00020273,2]
[368265315,1751081447770,-2938.26,0.00020273,2]
[368265316,1751081447779,-460.0,0.00020273,2]
[368265317,1751081447789,-460.0,0.00020273,2]
[368265318,1751081447799,-460.0,0.00020273,2]
[368265319,1751081447808,-460.0,0.00020273,2]
[368265320,1751081447817,-260.51360379,0.00020273,2]
[368265321,1751081447826,-3954.53,0.00020273,2]
[368265322,1751081447835,-460.0,0.00020273,2]
[368265323,1751081447845,-1403.17,0.00020273,2]
[368265324,1751081447854,-1949.5,0.00020273,2]
[368265325,1751081447863,-968.22,0.00020273,2]
[368265326,1751081447873,-1269.31,0.00020273,2]
[368265327,1751081447882,-848.21,0.00020273,2]
[368265328,1751081447892,-460.0,0.00020273,2]
[368265329,1751081447901,-460.0,0.00020273,2]
[368265330,1751081447911,-460.0,0.00020273,2]
[368265331,1751081447920,-670.55,0.00020273,2]
[368265332,1751081447929,-521.35,0.00020273,2]
[368265333,1751081447939,-460.0,0.00020273,2]
[368265334,1751081447948,-1126.96,0.00020273,2]
[368265335,1751081447958,-460.0,0.00020273,2]
[368265336,1751081447968,-460.0,0.00020273,2]
[368265337,1751081447980,-1814.01,0.00020273,2]
[368265338,1751081447991,-1478.45,0.00020273,2]
[368265339,1751081448001,-300.0,0.00020298,2]
[368265340,1751081448010,-159.1939926,0.00020301,2]
[368265341,1751081448019,-168.0,0.00020312,2]
[368265342,1751081448029,-847.18566335,0.00020383,3]
[368265343,1751081448038,-12564.78152626,0.00020383,3]
[368265344,1751081448047,-10308.31586681,0.00020383,3]
[368265345,1751081448056,-160.0,0.00020383,3]
[368265346,1751081448065,-168.0,0.00020484,2]
[368265347,1751081448074,-976.58,0.00020538,3]
[368265348,1751081448083,-488.28,0.00020538,3]
[368265349,1751081448093,-1924.64,0.00020546,2]
[368265350,1751081448102,-500.0,0.00020547,14]
[368265351,1751081448112,-460.0,0.00020547,2]
[368265352,1751081448121,-495.78,0.00020547,2]
[368265353,1751081448131,-460.0,0.00020547,2]
[368265354,1751081448141,-302.42,0.00020547,2]
[368265355,1751081448150,-3853.58,0.00020547,2]
[368265356,1751081448159,-460.0,0.00020547,2]
[368265357,1751081448168,-460.0,0.00020547,2]
[368265358,1751081448177,-1138.99,0.00020547,2]
[368265359,1751081448187,-460.0,0.00020547,2]
[368265360,1751081448196,-460.0,0.00020547,2]
[368265361,1751081448206,-460.0,0.00020547,2]
[368265362,1751081448215,-2100.3,0.00020547,2]
[368265363,1751081448224,-733.55,0.00020547,2]
[368265364,1751081448233,-460.0,0.00020547,2]
[368265365,1751081448243,-460.0,0.00020547,2]
[368265366,1751081448252,-1393.07,0.00020547,2]
[368265367,1751081448262,-460.0,0.00020547,2]
[368265368,1751081448271,-948.49,0.00020547,2]
[368265369,1751081448280,-460.0,0.00020547,2]
[368265370,1751081448290,-460.0,0.00020547,2]
[368265371,1751081448299,-2240.13,0.00020547,2]
[368265372,1751081448309,-690.88,0.00020547,2]
[368265373,1751081448318,-460.0,0.00020547,2]
[368265374,1751081448327,-460.0,0.00020547,2]
[368265375,1751081448337,-460.0,0.00020547,2]
[368265376,1751081448346,-460.0,0.00020547,2]
[368265377,1751081448355,-460.0,0.00020547,2]
[368265378,1751081448365,-2481.25,0.00020547,2]
[368265379,1751081448374,-460.0,0.00020547,2]
[368265380,1751081448384,-773.22,0.00020547,2]
[368265381,1751081448393,-814.58,0.00020547,2]
[368265382,1751081448403,-460.0,0.00020547,2]
[368265383,1751081448412,-460.0,0.00020547,2]
[368265384,1751081448421,-460.0,0.00020547,2]
[368265385,1751081448431,-1777.23,0.00020547,2]
[368265386,1751081448440,-277.82,0.00020547,2]
[368265387,1751081448449,-2125.76,0.00020547,2]
[368265388,1751081448459,-460.0,0.00020547,2]
[368265389,1751081448468,-460.0,0.00020547,2]
[368265390,1751081448478,-2021.84,0.00020547,2]
[368265391,1751081448487,-655.55,0.00020547,2]
[368265392,1751081448500,-2938.26,0.00020547,2]
[368265393,1751081448509,-460.0,0.00020547,2]
[368265394,1751081448519,-460.0,0.00020547,2]
[368265395,1751081448528,-151.0,0.00020547,2]
[368265396,1751081448538,-460.0,0.00020547,2]
[368265397,1751081448547,-460.0,0.00020547,2]
[368265398,1751081448557,-3954.53,0.00020547,2]
[368265399,1751081448566,-460.0,0.00020547,2]
[368265400,1751081448576,-1403.17,0.00020547,2]
[368265401,1751081448586,-1949.5,0.00020547,2]
[368265402,1751081448595,-968.22,0.00020547,2]
[368265403,1751081448722,-1269.31,0.00020547,2]
[368265404,1751081448737,-848.21,0.00020547,2]
[368265405,1751081448747,-460.0,0.00020547,2]
[368265406,1751081448756,-460.0,0.00020547,2]
[368265407,1751081448766,-460.0,0.00020547,2]
[368265408,1751081448776,-670.55,0.00020547,2]
[368265409,1751081448785,-267.308168,0.00020547,2]
[368265410,1751081448795,-521.35,0.00020547,2]
[368265411,1751081448805,-1126.96,0.00020547,2]
[368265412,1751081448815,-460.0,0.00020547,2]
[368265413,1751081448825,-460.0,0.00020547,2]
[368265414,1751081448834,-1814.01,0.00020547,2]
[368265415,1751081448844,-1478.45,0.00020547,2]
[368265416,1751081448853,-2393.45651943,0.00020583,2]
[368265417,1751081448863,-168.0,0.00020593,2]
[368265418,1751081448872,-3689.19,0.000206,2]
[368265419,1751081448882,-1924.64,0.00020623,2]
[368265420,1751081448891,-151.0,0.00020624,2]
[368265421,1751081448901,-299.560338,0.00020624,2]
[368265422,1751081448911,-299.560338,0.00020624,2]
[368265423,1751081448920,-151.0,0.00020624,2]
[368265424,1751081448930,-151.902895,0.00020624,2]
[368265425,1751081448941,-302.676535,0.00020624,2]
[368265426,1751081448951,-302.676535,0.00020624,2]
[368265427,1751081448961,-10308.31586681,0.00020624,3]
[368265428,1751081448971,-366.1706175,0.00020658,2]
[368265429,1751081448981,-177.4788171,0.00020667,2]
[368265430,1751081448991,-159.2394861,0.00020667,2]
[368265431,1751081449000,-159.2394861,0.00020667,2]
[368265432,1751081449010,-177.4788171,0.00020667,2]
[368265433,1751081449020,-177.4788171,0.00020667,2]
[368265434,1751081449029,-159.2394861,0.00020667,2]
[368265435,1751081449039,-176.9074059,0.00020667,2]
[368265436,1751081449049,-159.2394861,0.00020667,2]
[368265437,1751081449059,-666.0,0.00020695,2]
[368265438,1751081449069,-25000.0,0.00020695,2]
[368265439,1751081449079,-500.0,0.00020695,2]
[368265440,1751081449088,-500.0,0.00020695,2]
[368265441,1751081449099,-5000.0,0.00020695,2]
[368265442,1751081449108,-18218.17108754,0.00020695,2]
[368265443,1751081449117,-500.0,0.00020695,2]
[368265444,1751081449127,-500.0,0.00020695,2]
[368265445,1751081449136,-500.0,0.00020695,2]
[368265446,1751081449145,-500.0,0.00020695,2]
[368265447,1751081449155,-500.0,0.00020695,2]
[368265448,1751081449165,-500.0,0.00020695,2]
[368265449,1751081449174,-500.0,0.00020695,2]
[368265450,1751081449184,-500.0,0.00020695,2]
[368265451,1751081449194,-500.0,0.00020695,2]
[368265452,1751081449203,-500.0,0.00020695,2]
[368265453,1751081449213,-500.0,0.00020695,2]
[368265454,1751081449222,-500.0,0.00020695,2]
[368265455,1751081449232,-207.4,0.00020695,2]
[368265456,1751081449242,-500.0,0.00020695,2]
[368265457,1751081449252,-500.0,0.00020695,2]
[368265458,1751081449262,-500.0,0.00020695,2]
[368265459,1751081449271,-500.0,0.00020695,2]
[368265460,1751081449281,-152.476762,0.00020695,2]
[368265461,1751081449291,-151.0,0.00020695,2]
[368265462,1751081449301,-151.0,0.00020695,2]
[368265463,1751081449311,-151.0,0.00020695,2]
[368265464,1751081449322,-151.0,0.00020695,2]
[368265465,1751081449332,-151.0,0.00020695,2]
[368265466,1751081449342,-690.642,0.0002075,2]
[368265467,1751081449352,-240.94687,0.00020795,2]
[368265468,1751081449362,-716.195754,0.00020805,2]
[368265469,1751081449371,-1924.64,0.0002082,2]
[368265470,1751081449381,-460.0,0.00020821,2]
[368265471,1751081449392,-460.0,0.00020821,2]
[368265472,1751081449403,-3853.58,0.00020821,2]
[368265473,1751081449414,-221.83,0.00020821,2]
[368265474,1751081449424,-460.0,0.00020821,2]
[368265475,1751081449433,-1138.99,0.00020821,2]
[368265476,1751081449442,-460.0,0.00020821,2]
[368265477,1751081449452,-460.0,0.00020821,2]
[368265478,1751081449461,-460.0,0.00020821,2]
[368265479,1751081449471,-2100.3,0.00020821,2]
[368265480,1751081449480,-733.55,0.00020821,2]
[368265481,1751081449490,-460.0,0.00020821,2]
[368265482,1751081449502,-460.0,0.00020821,2]
[368265483,1751081449511,-1393.07,0.00020821,2]
[368265484,1751081449521,-460.0,0.00020821,2]
[368265485,1751081449530,-948.49,0.00020821,2]
[368265486,1751081449539,-460.0,0.00020821,2]
[368265487,1751081449551,-460.0,0.00020821,2]
[368265488,1751081449560,-2240.13,0.00020821,2]
[368265489,1751081449570,-690.88,0.00020821,2]
[368265490,1751081449583,-460.0,0.00020821,2]
[368265491,1751081449592,-477.27919731,0.00020821,2]
[368265492,1751081449601,-460.0,0.00020821,2]
[368265493,1751081449611,-460.0,0.00020821,2]
[368265494,1751081449620,-460.0,0.00020821,2]
[368265495,1751081449630,-2481.25,0.00020821,2]
[368265496,1751081449639,-460.0,0.00020821,2]
[368265497,1751081449649,-773.22,0.00020821,2]
[368265498,1751081449658,-814.58,0.00020821,2]
[368265499,1751081449669,-460.0,0.00020821,2]
[368265500,1751081449678,-460.0,0.00020821,2]
[368265501,1751081449687,-460.0,0.00020821,2]
[368265502,1751081449696,-1777.23,0.00020821,2]
[368265503,1751081449706,-2125.76,0.00020821,2]
[368265504,1751081449715,-460.0,0.00020821,2]
[368265505,1751081449724,-460.0,0.00020821,2]
[368265506,1751081449734,-2021.84,0.00020821,2]
[368265507,1751081449743,-655.55,0.00020821,2]
[368265508,1751081449752,-2938.26,0.00020821,2]
[368265509,1751081449762,-460.0,0.00020821,2]
[368265510,1751081449771,-460.0,0.00020821,2]
[368265511,1751081449780,-460.0,0.00020821,2]
[368265512,1751081449790,-460.0,0.00020821,2]
[368265513,1751081449799,-3954.53,0.00020821,2]
[368265514,1751081449808,-460.0,0.00020821,2]
[368265515,1751081449818,-1403.17,0.00020821,2]
[368265516,1751081449827,-1949.5,0.00020821,2]
[368265517,1751081449837,-968.22,0.00020821,2]
[368265518,1751081449847,-1269.31,0.00020821,2]
[368265519,1751081449856,-848.21,0.00020821,2]
[368265520,1751081449865,-460.0,0.00020821,2]
[368265521,1751081449875,-460.0,0.00020821,2]
[368265522,1751081449885,-460.0,0.00020821,2]
[368265523,1751081449894,-670.55,0.00020821,2]
[368265524,1751081449904,-521.35,0.00020821,2]
[368265525,1751081449913,-1126.96,0.00020821,2]
[368265526,1751081449923,-460.0,0.00020821,2]
[368265527,1751081449932,-460.0,0.00020821,2]
[368265528,1751081449942,-1814.01,0.00020821,2]
[368265529,1751081449952,-1478.45,0.00020821,2]
[368265530,1751081449961,-742.6949969,0.0002086,2]
[368265531,1751081449971,-10308.31586681,0.00020866,4]
[368265532,1751081449979,-521.1,0.00020898,4]
[368265533,1751081449988,-151.0,0.000209,4]
[368265534,1751081449998,-770.17471178,0.00020915,2]
[368265535,1751081450007,-500.0,0.00020958,15]
[368265536,1751081450016,-798.67117612,0.0002097,2]
[368265537,1751081450026,-18803.49168301,0.00021,2]
[368265538,1751081450035,-151.0,0.00021,2]
[368265539,1751081450045,-154.972368,0.00021,2]
[368265540,1751081450054,-269.1667008,0.00021,2]
[368265541,1751081450063,-5209.47194379,0.00021,2]
[368265542,1751081450073,-201.33996909,0.00021,2]
[368265543,1751081450082,-151.962091,0.00021,2]
[368265544,1751081450091,-828.22200964,0.00021025,2]
[368265545,1751081450101,-431.40476906,0.0002107,2]
[368265546,1751081450111,-858.86622399,0.0002108,2]
[368265547,1751081450120,-160.0,0.00021083,3]
[368265548,1751081450129,-1924.64,0.00021094,2]
[368265549,1751081450138,-33958.84822164,0.00021095,2]
[368265550,1751081450147,-5673.15573393,0.00021095,2]
[368265551,1751081450156,-460.0,0.00021095,2]
[368265552,1751081450166,-3853.58,0.00021095,2]
[368265553,1751081450175,-460.0,0.00021095,2]
[368265554,1751081450184,-1138.99,0.00021095,2]
[368265555,1751081450193,-460.0,0.00021095,2]
[368265556,1751081450202,-460.0,0.00021095,2]
[368265557,1751081450211,-460.0,0.00021095,2]
[368265558,1751081450221,-2100.3,0.00021095,2]
[368265559,1751081450230,-460.0,0.00021095,2]
[368265560,1751081450239,-733.55,0.00021095,2]
[368265561,1751081450249,-460.0,0.00021095,2]
[368265562,1751081450258,-1393.07,0.00021095,2]